Cogmind - Beta 13 @@@ ROGUE MODE // 2024.04.03 @ 21:22:31 Player: thatguyhowie Result: Destroyed by D-53 Grenadier with Mini Grenade Launcher Performance ------------- Evolutions (0) 0 Regions Visited (2) 400 Robots Destroyed (8) 40 Value Destroyed (298) 298 Prototype IDs (0) 0 Alien Tech Used (0) 0 Bonus (0) 0 TOTAL SCORE: 738 Bonus ------- None Cogmind --------- Core Integrity 0/250 Matter 290/300 Energy 128/250 System Corruption 0% Temperature Cool (0) Movement Core (100) Ox1 Location -10/Mines Parts ------- > --- POWER (1) -------- Ion Engine > --- PROPULSION (2) --- (None) > --- UTILITY (2) ------ Improved Heat Sink > --- WEAPON (2) ------- (None) > --- INVENTORY (5) ---- Targeting Computer Peak State ------------ > --- POWER ------------ Light Ion Engine > --- PROPULSION ------- Aluminum Leg Aluminum Leg > --- UTILITY ---------- Improved Heat Sink > --- WEAPON ----------- Small Laser Light Assault Rifle > --- INVENTORY -------- Aluminum Leg [Rating: 8] Favorites ----------- Power Light Ion Engine Engine Light Ion Engine Propulsion Aluminum Leg Leg Aluminum Leg Utility Improved Heat Sink Device Improved Heat Sink Weapon Small Laser Energy Gun Small Laser Ballistic Gun Light Assault Rifle Special Weapon Mining Laser Build | -11 -10 -10 ------- Run | Yrd Mat Min Slots Evolved . | . . . Power . | . . . Propulsion . | . . . Utility . | . . . Weapon . | . . . Parts Attached 14 | 5 8 1 Power 3 | 1 1 1 Engine 3 | 1 1 1 Core . | . . . Reactor . | . . . Propulsion 5 | 2 3 . Treads . | . . . Leg 5 | 2 3 . Wheel . | . . . Hover . | . . . Flight . | . . . Utility 1 | . 1 . Device 1 | . 1 . Storage . | . . . Processor . | . . . Hackware . | . . . Protection . | . . . Artifact . | . . . Weapon 5 | 2 3 . Energy Gun 3 | 2 1 . Energy Cannon . | . . . Ballistic Gun 1 | . 1 . Ballistic Cannon . | . . . Launcher . | . . . Special Weapon 1 | . 1 . Impact Weapon . | . . . Slashing Weapon . | . . . Piercing Weapon . | . . . Special Melee Weapon . | . . . Unidentified Prototypes . | . . . Parts Lost 9 | . 4 5 Power 2 | . 1 1 Propulsion 3 | . 1 2 Utility . | . . . Weapon 4 | . 2 2 Highest Loss Streak 5 | . 2 5 To Critical Strikes . | . . . Average Slot Usage (%) 63 | . 63 52 Engine 13 | . 13 9 Leg 23 | . 23 14 Device 3 | . 2 14 Energy Gun 16 | . 16 4 Ballistic Gun 5 | . 4 9 Special Weapon 1 | . 1 . Naked Turns . | . . . Heaviest Build 7 | 7 7 6 Greatest Support 20 | 20 20 20 Greatest Overweight (x) 1 | . 1 1 Average Overweight (x) . | . . . Largest Inventory Capacity 5 | 5 5 5 Average Capacity 5 | 5 5 5 Most Carried 3 | 2 3 2 Average Carried 1 | 1 1 1 Final Capacity 5 | 5 5 5 Final Carried 2 | 2 2 1 Class Distribution -------------------- 100% | Mutant Dominant Class ---------------- Mutant | -10/Materials Mutant | -10/Mines Resources | -11 -10 -10 ----------- Run | Yrd Mat Min Matter Collected 382 | 237 145 . Remotely . | . . . Salvage Created 306 | . 306 . Parts 14 | . 14 . Haulers Intercepted . | . . . Recyclers Shooed . | . . . Parts Field Recycled . | . . . Retrieved Matter . | . . . Parts Self-Destructed . | . . . Prevented . | . . . Kills | -11 -10 -10 ------- Run | Yrd Mat Min Combat Hostiles Destroyed 8 | . 8 . Guns 7 | . 7 . Cannons 1 | . 1 . Classes Destroyed 1 | . 1 . Grunt 8 | . 8 . Best Kill Streak 3 | . 3 . Combat Bots Only 3 | . 3 . Max Kills in Single Turn 1 | . 1 . Gunslinging . | . . . Exploded . | . . . Melee . | . . . Uniques/NPCs Destroyed . | . . . Combat | -11 -10 -10 -------- Run | Yrd Mat Min Hostile Shots Fired 91 | . 53 38 Missed 27 | . 14 13 Damage Taken 927 | . 468 459 Core 260 | . 73 187 Absorbed by Shields . | . . . Core Remaining (%) 100 | 100 . . Volleys Fired 63 | . 61 2 Largest 2 | . 2 2 Hottest 120 | . 120 60 Shots Fired 103 | . 99 4 Gun 97 | . 93 4 Cannon . | . . . Launcher . | . . . Special 6 | . 6 . Kinetic 29 | . 27 2 Thermal 74 | . 72 2 Explosive . | . . . Electromagnetic . | . . . Robot Hit Streak 7 | . 7 1 Robot Miss Streak 4 | . 4 3 Penetration Max . | . . . Secondary Targets 1 | . 1 . Max Gunslinging Chain 1 | . 1 . Shots Hit Robots 56 | . 55 1 Core Hits 24 | . 23 1 Critical Kills . | . . . Critical Parts Destroyed . | . . . Critical Strikes . | . . . Melee Attacks . | . . . Impact . | . . . Slashing . | . . . Piercing . | . . . Sneak Attacks . | . . . Combat Hostiles . | . . . Follow-up Attacks . | . . . Damage Inflicted 629 | . 612 17 Guns 557 | . 540 17 Cannons . | . . . Explosions . | . . . Melee . | . . . Ramming . | . . . Kinetic 159 | . 153 6 Thermal 470 | . 459 11 Explosive . | . . . Electromagnetic . | . . . Impact . | . . . Slashing . | . . . Piercing . | . . . Highest Corruption . | . . . Average Corruption . | . . . Corruption Purged . | . . . Corruption Blocked . | . . . Overload Shots . | . . . Overflow Damage . | . . . Projectiles . | . . . Explosions . | . . . Melee . | . . . Knockbacks . | . . . Impact . | . . . Kinetic . | . . . Secondary . | . . . Self-Inflicted Damage . | . . . Shots . | . . . Rammed . | . . . Targets Rammed . | . . . Kicked . | . . . Crushed . | . . . Highest Temperature 427 | . 427 28 Average Temperature 142 | . 145 17 Received Heat Transfer 433 | . 273 160 Effects 7 | . 7 . Shutdowns 1 | . 1 . Matter Decay 1 | . 1 . Short Circuit 1 | . 1 . Damage (minor) 1 | . 1 . Damage (major) 3 | . 3 . Siege Activations . | . . . Robots Corrupted . | . . . Combat Hostiles . | . . . Parts Fried . | . . . Impact Corruptions . | . . . Robots Melted . | . . . Combat Hostiles . | . . . Parts Melted . | . . . Heat Transferred 1050 | . 1025 25 Parts Sabotaged . | . . . Parts Stolen . | . . . Parts Stripped . | . . . Power Chain Reactions . | . . . Alert | -11 -10 -10 ------- Run | Yrd Mat Min Peak Influence 123 | . 123 15 Initial . | . . . Average 49 | . 54 4 Maximum Alert Level . | . . . Low Security (%) 100 | 100 100 100 Level 1 . | . . . Level 2 . | . . . Level 3 . | . . . Level 4 . | . . . Level 5 . | . . . High Security . | . . . Max Security . | . . . Squads Dispatched 1 | . 1 . Investigation . | . . . Extermination . | . . . Reinforcement 1 | . 1 . Assault . | . . . Garrison . | . . . Intercept . | . . . Searches Triggered . | . . . Construction Impeded . | . . . Haulers Reinforced . | . . . Active Scanning Responses . | . . . Cargo Convoy Interrupts . | . . . Stealth | -11 -10 -10 --------- Run | Yrd Mat Min Distress Signals 1 | . 1 . Communications Jammed . | . . . Distress Signals . | . . . Times Spotted 30 | . 15 15 Peak Tracking Total 15 | . 4 15 Tactical Retreats . | . . . Traps | -11 -10 -10 ------- Run | Yrd Mat Min Traps Triggered . | . . . Indirectly . | . . . Trap Hack Attempts . | . . . Triggered . | . . . Disarmed . | . . . Reprogrammed . | . . . Reused . | . . . Traps Extracted . | . . . Installed . | . . . Triggered . | . . . Machines | -11 -10 -10 ---------- Run | Yrd Mat Min Machines Disabled . | . . . Max in Single Turn . | . . . Machines Repaired . | . . . Machines Dismantled . | . . . Machines Sabotaged . | . . . Overloaded Fab Kills . | . . . Hacking | -11 -10 -10 --------- Run | Yrd Mat Min Machines Accessed 6 | . 6 . Terminals 5 | . 5 . Fabricators . | . . . Repair Stations . | . . . Recycling Units 1 | . 1 . Scanalyzers . | . . . Garrison Access . | . . . Total Hacks 9 | . 9 . Successful 7 | . 7 . Failed 2 | . 2 . Catastrophic 2 | . 2 . Database Lockouts . | . . . Manual . | . . . Terminals 6 | . 6 . Fabricators . | . . . Repair Stations . | . . . Recycling Units 3 | . 3 . Scanalyzers . | . . . Garrison Access . | . . . Terminal Hacks 5 | . 5 . Record 3 | . 3 . Emergency Access Points 1 | . 1 . Locate Traps 1 | . 1 . Fabricator Hacks . | . . . Repair Station Hacks . | . . . Recycling Unit Hacks 2 | . 2 . Recycle Component 1 | . 1 . Process 1 | . 1 . Scanalyzer . | . . . Garrison Access Hacks . | . . . Unauthorized Hacks . | . . . Terminals . | . . . Fabricators . | . . . Repair Stations . | . . . Recycling Units . | . . . Scanalyzers . | . . . Garrison Access . | . . . Data Cores Recovered . | . . . Used . | . . . Hacking Detections 4 | . 4 . Full Trace Events . | . . . Feedback Events . | . . . Feedback Blocked . | . . . Robot Schematics Acquired . | . . . Robots Built . | . . . Authchips . | . . . Time . | . . . Total Robot Build Rating . | . . . Part Schematics Acquired . | . . . Parts Built . | . . . Authchips . | . . . Time . | . . . Total Part Build Rating . | . . . Parts Repaired . | . . . Time . | . . . Parts Recycled 1 | . 1 . Recycled Matter 160 | . 160 . Retrieved Matter . | . . . Retrieved Components . | . . . Parts Scanalyzed . | . . . Part Schematics Acquired . | . . . Parts Damaged . | . . . Bothacking | -11 -10 -10 ------------ Run | Yrd Mat Min Used RIF Installer . | . . . Robots Hacked . | . . . Non-combat . | . . . Combat . | . . . Robot Hacks Applied . | . . . Relay Couplers Released . | . . . Fabnet Peak Effective % . | . . . Robots Rewired . | . . . Allies Hacked . | . . . Hacks Repelled . | . . . Allies | -11 -10 -10 -------- Run | Yrd Mat Min Total Allies . | . . . Largest Group . | . . . Highest-Rated Group . | . . . Highest-Rated Ally . | . . . Total Orders . | . . . Ally Attacks . | . . . Total Damage . | . . . Kills . | . . . Allies Corrupted . | . . . Allies Melted . | . . . Intel | -11 -10 -10 ------- Run | Yrd Mat Min Robot Analysis Total . | . . . Derelict Logs Recovered . | . . . Drone Launches . | . . . Drone Recoveries . | . . . Exploration | -11 -10 -10 ------------- Run | Yrd Mat Min Turns Passed 965 | 62 868 35 Spaces Moved 646 | 47 574 25 Core 16 | 5 5 6 Treads . | . . . Legs 630 | 42 569 19 Wheels . | . . . Hover . | . . . Flight . | . . . Fastest Speed 50 | 50 100 100 Average Speed 119 | 112 119 115 Slowest Speed 120 | 120 120 120 Overloaded Moves . | . . . Propulsion Burnouts . | . . . Robots Hopped . | . . . Cave-ins Triggered . | . . . Exploration Rate (%) 30 | 3 72 15 Regions Visited 2 Branch Regions 1 Pre-discovered Areas . | . . . Known Exits Taken . | . . . Unknown Exits Taken 2 | 1 1 . Scrap Searched . | . . . Spaces Dug . | . . . Terrain Destroyed . | . . . Melee . | . . . Projectile . | . . . AOE . | . . . Terrain Rammed . | . . . Walls Destroyed . | . . . Machines Disabled . | . . . Actions | -11 -10 -10 --------- Run | Yrd Mat Min Total 730 | 53 649 28 Wait . | . . . Move 644 | 46 573 25 Hop . | . . . Pick Up 6 | 2 4 . Fast Attach 7 | 5 2 . Attach 7 | . 6 1 Detach 3 | . 3 . Swap . | . . . Drop . | . . . Fire 63 | . 61 2 Melee . | . . . Ram . | . . . Kick . | . . . Crush . | . . . Escape Stasis . | . . . Rewire . | . . . Trap . | . . . Miscellaneous . | . . . Route ------- -11/Scrapyard -10/Materials (discovered 4 exits: [*Mat x2] / [*Min x2]) -10/Mines History --------- Turn | Location | Event 3 | -11/Scrapyard | Discovered new exit (range 16) 63 | -11/Scrapyard | Entered Materials 302 | -10/Materials | Build established: Mutant 373 | -10/Materials | Discovered new exit (range 10) 400 | -10/Materials | Discovered new exit (range 12) 575 | -10/Materials | Discovered new exit (range 8) 819 | -10/Materials | Discovered new exit (range 6) 931 | -10/Materials | Entered Mines 932 | -10/Mines | Assembled infested the area 951 | -10/Mines | Core integrity fell below 50% 965 | -10/Mines | Core integrity fell below 20% 966 | -10/Mines | Destroyed by D-53 Grenadier with Mini Grenade Launcher Last Messages --------------- Demolisher response squad. Sml. Laser destroyed. Aluminum Leg destroyed. Knocked back. Lgt. Ion Engine destroyed. C-30 ARC bursts open, deploying its payload. D-53 Grenadier unfolds itself. Lgt. Assault Rifle destroyed. Aluminum Leg destroyed. as-08417 destroyed. as-71717 destroyed. as-75628 destroyed. as-96531 destroyed. as-05907 destroyed. as-07566 destroyed. as-07925 destroyed. as-70712 destroyed. as-31169 destroyed. as-88048 destroyed. as-26714 destroyed. Map ----- +----------------------------------------------------+ | ?????######??####????????????????? | | ????## #### ##???????????????? | | ????# ## ##??????????????? | | ????# #??????????????? | | ?????# #??????????????? | | ??????# #??????????????? | | ??????# ##??????????????? | | ??????# ##???#???????????? | | ??????# ##?? #??????????? | | ??????## """ ## #??????????? | | ??????## """ #??????????? | | ??????# """ #???????????? | | ??????# a ##???????????? | | ??????# ## ##????????????? | | ??????? % ##? ????????????? | | ??????## ??? ###???????????? | | ?????## #??? #?????????????? | | ?????? ??? ##????????????? | | ??????# ???? #????????????? | | ??##### #??? ### ?????????? | | ??# ##? ??????????? | | ?????## # #?????????????? | | ?????# dd #??????????????? | | ??# ## ##??????????????? | | ??# ##???????????????? | | ?# @ #????????????????? | | ?# % ##????????????????? | | ?## ###?????????????????? | | ??# ######???????????????????? | | ??## ?????????????????????????? | | ???## ??????????????????????????? | | ????# #??????????????????????????? | | ????#$???????????????????????????? | | ????# ???????????????????????????? | | ???? ????????????????????????????? | | ???? ????????????????????????????? | | ???#?????????????????????????????? | | ?????????????????????????????????? | | ?????????????????????????????????? | | ?????????????????????????????????? | | ?????????????????????????????????? | | ?????????????????????????????????? | | ?????????????????????????????????? | | ?????????????????????????????????? | | ?????????????????????????????????? | | ?????????????????????????????????? | | ?????????????????????????????????? | | ?????????????????????????????????? | | ?????????????????????????????????? | | ?????????????????????????????????? | +----------------------------------------------------+ Best States ------------- Heat Dissipation 39 Energy Generation 10 Energy Capacity 250 Matter Stores 300 Matter Capacity 300 Sight Range 16 Terrain Scan Density 10 Evasion (%) 55 Item Schematics ----------------- None Robot Schematics ------------------ None Fabricated ------------ Nothing Alien Tech Used ----------------- None Achievements -------------- None Challenges ------------ None Game ------ Seed ElectronCompactPenetrator Manual? 0 Play Time 00:15:06 Cumulative 2.8 hours Start 2024.04.03 @ 21:07:32 End 2024.04.03 @ 21:22:31 Sessions 1 Manual Loads 0 Difficulty Rogue Special Mode None Game No. 3 Rogue 2 Adventurer 0 Explorer 1 Win Type - Total 0 Types 0/0/0/0/0/0/0/0/0 Lore% 4 Gallery% 5 Achievement% 7 Wizard Run 0 Options --------- Layout 1 ASCII 0 Keyboard 0 Movement Mouse Keybinds 0 Fullscreen 1 Font 24/Smallcaps Map View 50x35 Zoom Use 0% Tactical HUD 0 Map Filters NONE Filters NONE Steam 1 RUN: 1844fffd-68c1-4350-b67a-4e91634ad46b